[Event "Turkish Super League 2019"]
[Site "Konya"]
[Date "2019.07.21"]
[Round "5"]
[White "Romanov, Evgeny"]
[Black "Gadimbayli, Abdulla"]
[Result "0-1"]
[ECO "A29"]
[WhiteElo "2582"]
[BlackElo "2414"]
[Annotator "ChessBase"]
[PlyCount "78"]
[EventDate "2019.07.17"]
[EventType "team-tourn"]
[EventCountry "TUR"]
[SourceTitle "playchess.com"]
[Source "ChessBase"]
[SourceQuality "1"]
[TimeControl "40/5400+30:1800+30"]

1. c4 Nf6 2. Nc3 e5 3. Nf3 Nc6 4. g3 Nd4 5. Bg2 Nxf3+ 6. Bxf3 Bc5 7. e3 Bb4 8. Qb3 a5 9. d3 O-O 10. O-O Re8 11. Na4 {[%emt 0:24:30]} e4 {[%emt 0:34:30]} 12. Bg2 {[%emt 0:05:30]} d5 {[%emt 0:17:30]} 13. cxd5 {[%emt 0:02:30]} b5 {[%emt 0:00:30]} 14. Nc3 {[%emt 0:00:30]} exd3 {[%emt 0:02:30]} 15. Rd1 {[%emt 0:13:30]} Rb8 {[%emt 0:30:58]} 16. a3 {[%emt 0:23:30]} Bxc3 {[%emt 0:01:04]} 17. Qxc3 {[%emt 0:00:30]} Bf5 {[%emt 0:00:56]} 18. Qd4 {[%emt 0:01:30]} Rb6 {[%emt 0:08:01]} 19. Bd2 {[%emt 0:04:30]} Rd6 {[%emt 0:00:32]} 20. Bc3 {[%emt 0:01:30]} Bg6 {[%emt 0:01:03]} 21. b4 {[%emt 0:03:15]} a4 {[%emt 0:00:22]} 22. Rac1 {[%emt 0:04:11]} c6 {[%emt 0:00:31]} 23. Bb2 {[%emt 0:00:56]} cxd5 {[%emt 0:00:39]} 24. Rc5 {[%emt 0:00:11]} Qd7 {[%emt 0:00:00]} 25. f3 {[%emt 0:07:32]} h6 {[%emt 0:00:25]} 26. g4 {[%emt 0:03:15]} Rde6 {[%emt 0:00:53]} 27. Re1 {[%emt 0:01:01]} Qe7 {[%emt 0:00:10]} 28. Bc1 {[%emt 0:02:40]} Qd7 {[%emt 0:00:06]} 29. h3 {[%emt 0:01:37]} Qd6 {[%emt 0:01:24]} 30. Kf2 {[%emt 0:01:32]} Ne4+ {[%emt 0:02:04]} 31. fxe4 {[%emt 0:00:30]} Rf6+ {[%emt 0:00:00]} 32. Kg1 {[%emt 0:00:24]} Qg3 {[%emt 0:00:00]} 33. Rf1 {[%emt 0:00:52]} Bxe4 {[%emt 0:00:00]} 34. Qb2 {[%emt 0:00:03]} Ree6 {[%emt 0:00:12]} 35. Rf2 {[%emt 0:00:56]} Bxg2 {[%emt 0:00:17]} 36. Rxg2 {[%emt 0:00:48]} Qe1+ {[%emt 0:00:30]} 37. Kh2 {[%emt 0:00:30]} Rf1 {[%emt 0:00:00]} 38. Rd2 {[%emt 0:00:19]} Rh1+ {[%emt 0:00:05]} 39. Kg2 {[%emt 0:00:00]} Qf1+ {[%emt 0:00:05]} 0-1

[Event "Turkish Super League 2019"]
[Site "Konya"]
[Date "2019.07.21"]
[Round "5"]
[White "Dastan, Muhammed Batuhan"]
[Black "Durarbayli, Vasif"]
[Result "1/2-1/2"]
[ECO "C54"]
[WhiteElo "2565"]
[BlackElo "2637"]
[Annotator "ChessBase"]
[PlyCount "78"]
[EventDate "2019.07.17"]
[EventType "team-tourn"]
[EventCountry "TUR"]
[SourceTitle "playchess.com"]
[Source "ChessBase"]
[SourceQuality "1"]
[TimeControl "40/5400+30:1800+30"]

1. e4 e5 2. Nf3 Nc6 3. Bc4 Bc5 4. O-O Nf6 5. d3 O-O 6. h3 h6 7. Re1 d6 8. c3 a5 9. a4 Ba7 10. Nbd2 Be6 11. Bxe6 fxe6 12. Nf1 d5 13. Ng3 Qd6 {[%emt 0:21:30]} 14. Be3 {[%emt 0:34:00]} Bxe3 {[%emt 0:01:30]} 15. Rxe3 {[%emt 0:05:30]} d4 {[%emt 0:00:30]} 16. Re2 {[%emt 0:12:30]} Nd7 {[%emt 0:01:30]} 17. Qb3 {[%emt 0:00:30]} Kh7 {[%emt 0:04:30]} 18. Ne1 {[%emt 0:01:30]} b6 {[%emt 0:12:30]} 19. Qc4 {[%emt 0:02:30]} Ne7 {[%emt 0:02:30]} 20. Nf1 {[%emt 0:05:30]} g5 {[%emt 0:06:30]} 21. Nh2 {[%emt 0:01:30]} c5 {[%emt 0:03:30]} 22. Nef3 {[%emt 0:14:30]} Ng6 {[%emt 0:02:30]} 23. g3 {[%emt 0:00:00]} Rf7 {[%emt 0:01:30]} 24. Kg2 {[%emt 0:01:00]} Raf8 {[%emt 0:04:30]} 25. Rf1 {[%emt 0:02:30]} Kg7 {[%emt 0:02:30]} 26. Rfe1 {[%emt 0:03:52]} Qe7 {[%emt 0:02:30]} 27. Qb3 {[%emt 0:00:30]} Rf6 {[%emt 0:07:30]} 28. Qd1 {[%emt 0:04:57]} Qf7 {[%emt 0:03:30]} 29. Rd2 {[%emt 0:00:24]} Qe7 {[%emt 0:03:30]} 30. Ng1 {[%emt 0:02:11]} R6f7 {[%emt 0:00:00]} 31. Rc2 {[%emt 0:03:21]} Nf6 {[%emt 0:01:00]} 32. Rd2 {[%emt 0:00:22]} Qb7 {[%emt 0:00:30]} 33. Qb3 {[%emt 0:03:45]} Qc6 {[%emt 0:00:30]} 34. Qc4 {[%emt 0:00:38]} Nh5 {[%emt 0:07:07]} 35. Ng4 {[%emt 0:01:16]} Kh7 {[%emt 0:00:37]} 36. Nh2 {[%emt 0:00:39]} Ng7 {[%emt 0:02:19]} 37. Ngf3 {[%emt 0:00:59]} Qd6 {[%emt 0:02:29]} 38. Qb3 {[%emt 0:00:30]} Qd8 {[%emt 0:00:00]} 39. Ng1 {[%emt 0:02:54]} Qd6 {[%emt 0:01:00]} 1/2-1/2

[Event "Turkish Super League 2019"]
[Site "Konya"]
[Date "2019.07.21"]
[Round "5"]
[White "Rasulov, Vugar"]
[Black "Dimitrov, Radoslav"]
[Result "0-1"]
[ECO "A54"]
[WhiteElo "2534"]
[BlackElo "2530"]
[Annotator "ChessBase"]
[PlyCount "66"]
[EventDate "2019.07.17"]
[EventType "team-tourn"]
[EventCountry "TUR"]
[SourceTitle "playchess.com"]
[Source "ChessBase"]
[SourceQuality "1"]
[TimeControl "40/5400+30:1800+30"]

1. d4 Nf6 2. c4 d6 3. Nc3 e5 4. Nf3 e4 5. Ng1 h6 6. g3 c6 7. d5 c5 8. Bg2 Qe7 9. h3 Bf5 10. g4 Bh7 11. Qb3 g5 12. Qb5+ {[%emt 0:27:00]} Nbd7 {[%emt 0:29:00]} 13. h4 {[%emt 0:01:30]} O-O-O {[%emt 0:05:30]} 14. hxg5 {[%emt 0:06:30]} Nxg4 {[%emt 0:00:30]} 15. Bh3 {[%emt 0:00:30]} h5 {[%emt 0:05:30]} 16. Bf4 {[%emt 0:10:30]} Bg7 {[%emt 0:00:30]} 17. e3 {[%emt 0:00:30]} Nde5 {[%emt 0:01:30]} 18. Bxe5 {[%emt 0:00:30]} Bxe5 {[%emt 0:00:30]} 19. Nge2 {[%emt 0:00:30]} Bf5 {[%emt 0:04:30]} 20. Qa5 {[%emt 0:01:30]} Kb8 {[%emt 0:00:30]} 21. b4 {[%emt 0:04:30]} Rc8 {[%emt 0:16:30]} 22. Rb1 {[%emt 0:00:30]} Qxg5 {[%emt 0:00:00]} 23. bxc5 {[%emt 0:07:30]} Rxc5 {[%emt 0:02:00]} 24. Qb4 {[%emt 0:02:30]} Qe7 {[%emt 0:01:30]} 25. Nb5 {[%emt 0:06:30]} Nxf2 {[%emt 0:04:30]} 26. Kd2 {[%emt 0:05:30]} Bxh3 {[%emt 0:01:30]} 27. Rhg1 {[%emt 0:02:30]} Rhc8 {[%emt 0:01:30]} 28. Qa3 {[%emt 0:00:30]} a6 {[%emt 0:00:30]} 29. Nbd4 {[%emt 0:00:00]} Bxd4 {[%emt 0:06:30]} 30. Nxd4 {[%emt 0:00:00]} Ka7 {[%emt 0:00:30]} 31. Rb3 {[%emt 0:00:30]} Rxc4 {[%emt 0:00:30]} 32. Rgb1 {[%emt 0:00:30]} Rxd4+ {[%emt 0:00:30]} 33. exd4 {[%emt 0:00:00]} Qg5+ {[%emt 0:00:00]} 0-1

[Event "Turkish Super League 2019"]
[Site "Konya"]
[Date "2019.07.21"]
[Round "5"]
[White "Gholami, Aryan"]
[Black "Ayan, Bengu Sena"]
[Result "1-0"]
[ECO "D00"]
[WhiteElo "2532"]
[BlackElo "1885"]
[Annotator "ChessBase"]
[PlyCount "65"]
[EventDate "2019.07.17"]
[EventType "team-tourn"]
[EventCountry "TUR"]
[SourceTitle "playchess.com"]
[Source "ChessBase"]
[SourceQuality "1"]
[TimeControl "40/5400+30:1800+30"]

1. d4 d5 2. Bf4 Nf6 3. e3 g6 4. c4 c6 5. Nc3 a6 6. a4 Bg7 7. Nf3 O-O 8. Qb3 Qa5 9. Qa3 {[%emt 0:17:30]} dxc4 {[%emt 0:36:30]} 10. Bxc4 {[%emt 0:00:30]} Nd5 {[%emt 0:00:30]} 11. Bxd5 {[%emt 0:00:30]} cxd5 {[%emt 0:00:30]} 12. Qxe7 {[%emt 0:00:30]} Nc6 {[%emt 0:00:30]} 13. Qh4 {[%emt 0:02:30]} Re8 {[%emt 0:14:30]} 14. O-O {[%emt 0:01:30]} Be6 {[%emt 0:05:30]} 15. Bd6 {[%emt 0:11:30]} Qb6 {[%emt 0:10:30]} 16. Ba3 {[%emt 0:01:30]} Rad8 {[%emt 0:05:30]} 17. Ng5 {[%emt 0:02:30]} h6 {[%emt 0:01:30]} 18. Nxe6 {[%emt 0:00:30]} Rxe6 {[%emt 0:00:30]} 19. Rac1 {[%emt 0:03:30]} Ree8 {[%emt 0:02:30]} 20. Qg4 {[%emt 0:00:30]} Qa5 {[%emt 0:06:54]} 21. Qd1 {[%emt 0:01:30]} Qc7 {[%emt 0:08:02]} 22. b4 {[%emt 0:03:30]} Bf8 {[%emt 0:00:40]} 23. Qb3 {[%emt 0:00:30]} Qd6 {[%emt 0:02:21]} 24. Rb1 {[%emt 0:02:30]} a5 {[%emt 0:02:57]} 25. Nb5 {[%emt 0:00:30]} Qd7 {[%emt 0:00:28]} 26. bxa5 {[%emt 0:00:30]} Nxa5 {[%emt 0:00:24]} 27. Qd3 {[%emt 0:00:30]} Nc4 {[%emt 0:01:04]} 28. Bxf8 {[%emt 0:00:30]} Kxf8 {[%emt 0:01:05]} 29. Nc3 {[%emt 0:00:30]} Qc6 {[%emt 0:00:05]} 30. Rb5 {[%emt 0:00:00]} b6 {[%emt 0:00:57]} 31. Rc1 {[%emt 0:00:00]} Na3 {[%emt 0:00:56]} 32. Rb3 {[%emt 0:01:30]} Nc4 {[%emt 0:00:53]} 33. Nxd5 {[%emt 0:00:30]} 1-0

[Event "Turkish Super League 2019"]
[Site "Konya"]
[Date "2019.07.21"]
[Round "5"]
[White "Ali Marandi, Cemil Can"]
[Black "Kamer, Kayra"]
[Result "1-0"]
[ECO "B90"]
[WhiteElo "2527"]
[BlackElo "2340"]
[Annotator "ChessBase"]
[PlyCount "93"]
[EventDate "2019.07.17"]
[EventType "team-tourn"]
[EventCountry "TUR"]
[SourceTitle "playchess.com"]
[Source "ChessBase"]
[SourceQuality "1"]
[TimeControl "40/5400+30:1800+30"]

1. e4 c5 2. Nf3 d6 3. d4 cxd4 4. Nxd4 Nf6 5. Nc3 a6 6. h4 Nc6 7. Be3 Ng4 8. Nxc6 bxc6 9. Bd2 e5 10. Bc4 Be7 11. Qe2 Rb8 {[%emt 0:24:30]} 12. Bb3 {[%emt 0:32:00]} a5 {[%emt 0:06:30]} 13. O-O-O {[%emt 0:00:30]} Qb6 {[%emt 0:00:30]} 14. f3 {[%emt 0:08:30]} Ba6 {[%emt 0:00:00]} 15. Qe1 {[%emt 0:00:30]} Nf6 {[%emt 0:00:00]} 16. Bg5 {[%emt 0:05:30]} Qc7 {[%emt 0:02:30]} 17. g4 {[%emt 0:00:30]} O-O {[%emt 0:01:30]} 18. Qd2 {[%emt 0:04:30]} Rb4 {[%emt 0:02:30]} 19. Bxf6 {[%emt 0:04:30]} Rd4 {[%emt 0:00:30]} 20. Qf2 {[%emt 0:01:30]} Bxf6 {[%emt 0:00:30]} 21. g5 {[%emt 0:00:00]} Rxd1+ {[%emt 0:00:30]} 22. Nxd1 {[%emt 0:00:00]} Be7 {[%emt 0:00:30]} 23. Ne3 {[%emt 0:00:00]} a4 {[%emt 0:00:30]} 24. Bxa4 {[%emt 0:00:00]} Rb8 {[%emt 0:03:30]} 25. Bb3 {[%emt 0:03:30]} d5 {[%emt 0:04:30]} 26. Nf5 {[%emt 0:01:30]} Bf8 {[%emt 0:01:30]} 27. h5 {[%emt 0:00:30]} Bc4 {[%emt 0:00:30]} 28. g6 {[%emt 0:08:30]} fxg6 {[%emt 0:03:30]} 29. hxg6 {[%emt 0:00:30]} hxg6 {[%emt 0:00:00]} 30. Bxc4 {[%emt 0:00:30]} dxc4 {[%emt 0:00:00]} 31. Qe2 {[%emt 0:01:30]} Rb4 {[%emt 0:08:30]} 32. c3 {[%emt 0:02:30]} Ra4 {[%emt 0:00:30]} 33. Ne3 {[%emt 0:00:30]} Qa7 {[%emt 0:07:30]} 34. a3 {[%emt 0:01:30]} Be7 {[%emt 0:02:30]} 35. Nc2 {[%emt 0:02:30]} Qd7 {[%emt 0:01:30]} 36. Qg2 {[%emt 0:02:30]} Qe6 {[%emt 0:00:30]} 37. Rg1 {[%emt 0:00:00]} Kf7 {[%emt 0:00:30]} 38. f4 {[%emt 0:00:00]} exf4 {[%emt 0:09:30]} 39. Nd4 {[%emt 0:00:30]} f3 {[%emt 0:00:30]} 40. Qxf3+ {[%emt 0:03:30]} Qf6 {[%emt 0:00:00]} 41. Qg2 {[%emt 0:03:30]} Bd6 {[%emt 0:00:00]} 42. Rf1 {[%emt 0:00:30]} Bf4+ {[%emt 0:00:30]} 43. Kb1 {[%emt 0:00:30]} g5 {[%emt 0:00:00]} 44. e5 {[%emt 0:00:30]} Qxe5 {[%emt 0:00:00]} 45. Qxc6 {[%emt 0:00:30]} Ra7 {[%emt 0:00:30]} 46. Qxc4+ {[%emt 0:00:30]} Kg6 {[%emt 0:00:30]} 47. Qd3+ {[%emt 0:00:00]} 1-0

[Event "Turkish Super League 2019"]
[Site "Konya"]
[Date "2019.07.21"]
[Round "5"]
[White "Visakh N R"]
[Black "Annaberdiev, Meilis"]
[Result "1-0"]
[ECO "E06"]
[WhiteElo "2526"]
[BlackElo "2515"]
[Annotator "ChessBase"]
[PlyCount "139"]
[EventDate "2019.07.17"]
[EventType "team-tourn"]
[EventCountry "TUR"]
[SourceTitle "playchess.com"]
[Source "ChessBase"]
[SourceQuality "1"]
[TimeControl "40/5400+30:1800+30"]

1. d4 Nf6 2. c4 e6 3. Nf3 b6 4. g3 c6 5. Bg2 Be7 6. O-O O-O 7. Nc3 d5 8. Bf4 Bb7 9. Rc1 dxc4 10. Ne5 Nd5 11. Nxc4 {[%emt 0:26:30]} Nxf4 {[%emt 0:28:30]} 12. gxf4 {[%emt 0:00:30]} Nd7 {[%emt 0:00:30]} 13. Qd3 {[%emt 0:01:30]} Qc7 {[%emt 0:11:30]} 14. f5 {[%emt 0:01:30]} exf5 {[%emt 0:04:30]} 15. Qxf5 {[%emt 0:00:30]} Rad8 {[%emt 0:05:30]} 16. Rfd1 {[%emt 0:08:30]} Qb8 {[%emt 0:08:30]} 17. Qh3 {[%emt 0:02:30]} c5 {[%emt 0:11:30]} 18. d5 {[%emt 0:03:30]} Ba6 {[%emt 0:00:30]} 19. Ne4 {[%emt 0:07:30]} Bxc4 {[%emt 0:02:30]} 20. Rxc4 {[%emt 0:00:30]} Ne5 {[%emt 0:00:30]} 21. Rcc1 {[%emt 0:01:30]} f5 {[%emt 0:02:30]} 22. d6 {[%emt 0:01:30]} Rxd6 {[%emt 0:00:30]} 23. Nxd6 {[%emt 0:02:30]} Bxd6 {[%emt 0:00:30]} 24. Qb3+ {[%emt 0:00:30]} c4 {[%emt 0:00:30]} 25. Qb5 {[%emt 0:04:30]} Bc5 {[%emt 0:00:30]} 26. h3 {[%emt 0:10:30]} f4 {[%emt 0:00:30]} 27. b4 {[%emt 0:00:30]} cxb3 {[%emt 0:00:30]} 28. Qxb3+ {[%emt 0:00:30]} Kh8 {[%emt 0:00:00]} 29. Rd5 {[%emt 0:03:30]} Qc7 {[%emt 0:05:00]} 30. Qc3 {[%emt 0:07:02]} Re8 {[%emt 0:01:23]} 31. Kh1 {[%emt 0:05:48]} Qe7 {[%emt 0:01:05]} 32. Rcd1 {[%emt 0:00:15]} h6 {[%emt 0:06:06]} 33. Rf1 {[%emt 0:03:55]} Qf6 {[%emt 0:00:50]} 34. a4 {[%emt 0:01:17]} a5 {[%emt 0:03:16]} 35. Qc2 {[%emt 0:03:15]} g5 {[%emt 0:03:07]} 36. Qe4 {[%emt 0:01:53]} Kg7 {[%emt 0:01:38]} 37. Rd7+ {[%emt 0:00:36]} Kf8 {[%emt 0:01:15]} 38. Ra7 {[%emt 0:03:47]} g4 {[%emt 0:00:46]} 39. Ra8 {[%emt 0:01:54]} f3 {[%emt 0:01:07]} 40. Rxe8+ {[%emt 0:00:00]} Kxe8 {[%emt 0:00:00]} 41. hxg4 {[%emt 0:02:18]} fxg2+ {[%emt 0:00:27]} 42. Kxg2 {[%emt 0:00:30]} Qc6 {[%emt 0:02:30]} 43. Qxc6+ {[%emt 0:00:30]} Nxc6 {[%emt 0:00:00]} 44. Rh1 {[%emt 0:00:00]} Bf8 {[%emt 0:00:00]} 45. Kf3 {[%emt 0:02:00]} Ne5+ {[%emt 0:07:30]} 46. Kf4 {[%emt 0:00:30]} Nd7 {[%emt 0:00:00]} 47. Kf5 {[%emt 0:06:30]} Nc5 {[%emt 0:01:00]} 48. Ra1 {[%emt 0:00:30]} Kf7 {[%emt 0:08:17]} 49. Ra2 {[%emt 0:00:30]} Bg7 {[%emt 0:03:33]} 50. f4 {[%emt 0:01:30]} Nb7 {[%emt 0:00:29]} 51. Rd2 {[%emt 0:01:30]} Nc5 {[%emt 0:00:29]} 52. e4 {[%emt 0:01:30]} Bc3 {[%emt 0:00:37]} 53. Ra2 {[%emt 0:08:33]} Ne6 {[%emt 0:01:25]} 54. e5 {[%emt 0:00:12]} b5 {[%emt 0:00:04]} 55. axb5 {[%emt 0:00:53]} Nd4+ {[%emt 0:00:01]} 56. Ke4 {[%emt 0:00:01]} Nxb5 {[%emt 0:00:02]} 57. Kd5 {[%emt 0:00:29]} Bb4 {[%emt 0:00:33]} 58. Rh2 {[%emt 0:00:05]} Bf8 {[%emt 0:02:09]} 59. Rb2 {[%emt 0:01:17]} Nc7+ {[%emt 0:06:56]} 60. Kc6 {[%emt 0:00:07]} Ne6 {[%emt 0:00:00]} 61. f5 {[%emt 0:00:18]} Nc5 {[%emt 0:02:49]} 62. Rb8 {[%emt 0:02:05]} Nd3 {[%emt 0:03:27]} 63. e6+ {[%emt 0:00:38]} Kg7 {[%emt 0:00:29]} 64. Rb7+ {[%emt 0:00:41]} Kg8 {[%emt 0:00:01]} 65. e7 {[%emt 0:01:15]} Bxe7 {[%emt 0:00:17]} 66. Rxe7 {[%emt 0:00:02]} Nf2 {[%emt 0:01:22]} 67. Kd6 {[%emt 0:00:12]} Nxg4 {[%emt 0:01:07]} 68. Ke6 {[%emt 0:00:05]} Nf2 {[%emt 0:01:23]} 69. f6 {[%emt 0:00:47]} Ne4 {[%emt 0:00:39]} 70. Re8+ {[%emt 0:00:05]} 1-0

[Event "Turkish Super League 2019"]
[Site "Konya"]
[Date "2019.07.21"]
[Round "5"]
[White "Moiseenko, Vadim"]
[Black "Nihal Sarin"]
[Result "1/2-1/2"]
[ECO "A28"]
[WhiteElo "2523"]
[BlackElo "2610"]
[Annotator "ChessBase"]
[PlyCount "62"]
[EventDate "2019.07.17"]
[EventType "team-tourn"]
[EventCountry "TUR"]
[SourceTitle "playchess.com"]
[Source "ChessBase"]
[SourceQuality "1"]
[TimeControl "40/5400+30:1800+30"]

1. c4 Nf6 2. Nc3 e5 3. Nf3 Nc6 4. d4 exd4 5. Nxd4 Bb4 6. g3 Ne4 7. Qd3 Nxc3 8. bxc3 Bc5 {[%emt 0:41:00]} 9. Be3 {[%emt 0:27:30]} Ne5 {[%emt 0:17:30]} 10. Qe4 {[%emt 0:00:30]} d6 {[%emt 0:00:30]} 11. f4 {[%emt 0:02:30]} f5 {[%emt 0:00:30]} 12. Nxf5 {[%emt 0:00:30]} Bxf5 {[%emt 0:00:00]} 13. Qxf5 {[%emt 0:00:00]} Bxe3 {[%emt 0:02:00]} 14. fxe5 {[%emt 0:01:00]} Rf8 {[%emt 0:13:30]} 15. Qe4 {[%emt 0:09:30]} Bf2+ {[%emt 0:01:30]} 16. Kd1 {[%emt 0:00:00]} dxe5+ {[%emt 0:01:30]} 17. Kc2 {[%emt 0:00:00]} Qd7 {[%emt 0:00:30]} 18. Qxe5+ {[%emt 0:17:30]} Qe7 {[%emt 0:00:37]} 19. Qxe7+ {[%emt 0:00:30]} Kxe7 {[%emt 0:00:23]} 20. Bg2 {[%emt 0:00:30]} Rab8 {[%emt 0:07:14]} 21. Rad1 {[%emt 0:11:30]} Bc5 {[%emt 0:01:20]} 22. Rd5 {[%emt 0:02:30]} b6 {[%emt 0:00:05]} 23. Rg5 {[%emt 0:03:30]} g6 {[%emt 0:02:42]} 24. Be4 {[%emt 0:01:30]} Rbe8 {[%emt 0:03:49]} 25. h4 {[%emt 0:02:30]} Kf6 {[%emt 0:00:42]} 26. Rg4 {[%emt 0:02:03]} Re5 {[%emt 0:00:20]} 27. Bd3 {[%emt 0:01:08]} Bd6 {[%emt 0:00:31]} 28. a4 {[%emt 0:02:32]} Ra5 {[%emt 0:01:48]} 29. Kb3 {[%emt 0:01:00]} Re5 {[%emt 0:00:06]} 30. Kc2 {[%emt 0:02:54]} Ra5 {[%emt 0:00:30]} 31. Kb3 {[%emt 0:00:30]} Re5 {[%emt 0:00:00]} 1/2-1/2

[Event "Turkish Super League 2019"]
[Site "Konya"]
[Date "2019.07.21"]
[Round "5"]
[White "Lobanov, Sergei"]
[Black "Ozen, Bahadir"]
[Result "1-0"]
[ECO "C65"]
[WhiteElo "2505"]
[BlackElo "2366"]
[Annotator "ChessBase"]
[PlyCount "79"]
[EventDate "2019.07.17"]
[EventType "team-tourn"]
[EventCountry "TUR"]
[SourceTitle "playchess.com"]
[Source "ChessBase"]
[SourceQuality "1"]
[TimeControl "40/5400+30:1800+30"]

1. e4 e5 2. Nf3 Nc6 3. Bb5 Nf6 4. d3 Bc5 5. O-O Nd4 6. Nxd4 Bxd4 7. c3 Bb6 8. Ba4 c6 9. Na3 d6 10. Bc2 h6 11. Nc4 Bc7 12. f4 Be6 13. fxe5 dxe5 {[%emt 0:44:30]} 14. Ne3 {[%emt 0:12:00]} Bb6 {[%emt 0:00:30]} 15. Kh1 {[%emt 0:00:30]} g6 {[%emt 0:02:30]} 16. Qf3 {[%emt 0:07:30]} Nd7 {[%emt 0:01:30]} 17. b3 {[%emt 0:05:30]} Qh4 {[%emt 0:03:30]} 18. Bb2 {[%emt 0:02:30]} O-O-O {[%emt 0:04:30]} 19. d4 {[%emt 0:05:30]} h5 {[%emt 0:01:30]} 20. Rae1 {[%emt 0:06:30]} Rh7 {[%emt 0:03:30]} 21. g3 {[%emt 0:02:30]} Qg5 {[%emt 0:03:30]} 22. h4 {[%emt 0:07:30]} Qh6 {[%emt 0:05:30]} 23. Kg2 {[%emt 0:03:30]} exd4 {[%emt 0:04:30]} 24. cxd4 {[%emt 0:00:30]} Ne5 {[%emt 0:03:30]} 25. dxe5 {[%emt 0:00:30]} Rd2+ {[%emt 0:00:30]} 26. Rf2 {[%emt 0:00:30]} Rd8 {[%emt 0:09:48]} 27. Ba3 {[%emt 0:02:30]} Bc7 {[%emt 0:01:52]} 28. Qf6 {[%emt 0:03:30]} Bb6 {[%emt 0:00:29]} 29. Qf4 {[%emt 0:00:30]} Qg7 {[%emt 0:00:19]} 30. Bd6 {[%emt 0:01:30]} Rhh8 {[%emt 0:00:05]} 31. Bd3 {[%emt 0:04:30]} Rhe8 {[%emt 0:00:39]} 32. Bc4 {[%emt 0:01:30]} Rd7 {[%emt 0:00:33]} 33. Rc2 {[%emt 0:00:30]} Bd8 {[%emt 0:00:37]} 34. Qf2 {[%emt 0:01:30]} Bb6 {[%emt 0:00:40]} 35. Qf3 {[%emt 0:05:30]} Bd8 {[%emt 0:03:05]} 36. Bd5 {[%emt 0:03:30]} g5 {[%emt 0:01:38]} 37. hxg5 {[%emt 0:01:30]} Bxg5 {[%emt 0:00:48]} 38. Nf5 {[%emt 0:00:30]} Qh7 {[%emt 0:00:10]} 39. Rh1 {[%emt 0:02:30]} Rh8 {[%emt 0:00:53]} 40. Qf2 {[%emt 0:00:00]} 1-0

[Event "Turkish Super League 2019"]
[Site "Konya"]
[Date "2019.07.21"]
[Round "5"]
[White "Asadli, Vugar"]
[Black "Yilmaz, Mustafa"]
[Result "1/2-1/2"]
[ECO "B96"]
[WhiteElo "2502"]
[BlackElo "2618"]
[Annotator "ChessBase"]
[PlyCount "60"]
[EventDate "2019.07.17"]
[EventType "team-tourn"]
[EventCountry "TUR"]
[SourceTitle "playchess.com"]
[Source "ChessBase"]
[SourceQuality "1"]
[TimeControl "40/5400+30:1800+30"]

1. e4 c5 2. Nf3 d6 3. d4 cxd4 4. Nxd4 Nf6 5. Nc3 a6 6. Bg5 e6 7. f4 h6 8. Bh4 Qb6 9. Qd3 Qxb2 10. Rb1 Qa3 11. f5 Be7 12. fxe6 Bxe6 13. Nxe6 fxe6 14. e5 dxe5 15. Bxf6 gxf6 16. Be2 e4 17. Qc4 Nd7 18. Nxe4 {[%emt 0:42:00]} Qa5+ {[%emt 0:29:00]} 19. c3 {[%emt 0:00:30]} Qd5 {[%emt 0:03:30]} 20. O-O {[%emt 0:09:30]} Qxc4 {[%emt 0:03:30]} 21. Bxc4 {[%emt 0:00:30]} f5 {[%emt 0:00:30]} 22. Ng3 {[%emt 0:00:30]} Nc5 {[%emt 0:08:30]} 23. Rfe1 {[%emt 0:00:30]} O-O-O {[%emt 0:17:30]} 24. Nxf5 {[%emt 0:01:30]} exf5 {[%emt 0:10:30]} 25. Rxe7 {[%emt 0:00:30]} Rhe8 {[%emt 0:00:30]} 26. Rxe8 {[%emt 0:03:30]} Rxe8 {[%emt 0:00:30]} 27. Bd5 {[%emt 0:00:00]} Kc7 {[%emt 0:01:30]} 28. h3 {[%emt 0:01:00]} Re5 {[%emt 0:00:30]} 29. Bf3 {[%emt 0:03:30]} b5 {[%emt 0:05:30]} 30. c4 {[%emt 0:00:30]} Kb6 {[%emt 0:02:30]} 1/2-1/2

[Event "Turkish Super League 2019"]
[Site "Konya"]
[Date "2019.07.21"]
[Round "5"]
[White "Quparadze, Giga"]
[Black "Gulbas, Cemil"]
[Result "1-0"]
[ECO "B54"]
[WhiteElo "2499"]
[BlackElo "2380"]
[Annotator "ChessBase"]
[PlyCount "59"]
[EventDate "2019.07.17"]
[EventType "team-tourn"]
[EventCountry "TUR"]
[SourceTitle "playchess.com"]
[Source "ChessBase"]
[SourceQuality "1"]
[TimeControl "40/5400+30:1800+30"]

1. e4 c5 2. Nc3 e6 3. Nf3 a6 4. d4 cxd4 5. Nxd4 d6 6. g3 Ne7 7. Bg2 Nec6 8. Nb3 Be7 9. O-O O-O 10. f4 b5 11. g4 Qb6+ 12. Kh1 b4 13. Ne2 Rd8 14. g5 Bf8 15. f5 {[%emt 0:07:30]} Nd7 {[%emt 0:48:30]} 16. g6 {[%emt 0:03:30]} hxg6 {[%emt 0:02:30]} 17. fxe6 {[%emt 0:00:30]} fxe6 {[%emt 0:00:30]} 18. Nf4 {[%emt 0:00:30]} Nde5 {[%emt 0:00:30]} 19. Qe1 {[%emt 0:00:30]} g5 {[%emt 0:21:30]} 20. Nh5 {[%emt 0:00:30]} g4 {[%emt 0:03:30]} 21. Bg5 {[%emt 0:00:30]} Re8 {[%emt 0:04:36]} 22. Qg3 {[%emt 0:00:30]} Be7 {[%emt 0:06:40]} 23. Be3 {[%emt 0:00:30]} Qd8 {[%emt 0:00:34]} 24. Bh3 {[%emt 0:00:30]} Bh4 {[%emt 0:03:42]} 25. Qg2 {[%emt 0:00:00]} Qe7 {[%emt 0:01:46]} 26. Bxg4 {[%emt 0:00:00]} Nxg4 {[%emt 0:03:05]} 27. Qxg4 {[%emt 0:00:30]} Ne5 {[%emt 0:02:09]} 28. Qg2 {[%emt 0:00:00]} Kh7 {[%emt 0:00:00]} 29. Qh3 {[%emt 0:02:00]} Rh8 {[%emt 0:00:33]} 30. Nf6+ {[%emt 0:00:30]} 1-0

[Event "Turkish Super League 2019"]
[Site "Konya"]
[Date "2019.07.21"]
[Round "5"]
[White "Esen, Baris"]
[Black "Can, Emre"]
[Result "1/2-1/2"]
[ECO "B07"]
[WhiteElo "2478"]
[BlackElo "2595"]
[Annotator "ChessBase"]
[PlyCount "63"]
[EventDate "2019.07.17"]
[EventType "team-tourn"]
[EventCountry "TUR"]
[SourceTitle "playchess.com"]
[Source "ChessBase"]
[SourceQuality "1"]
[TimeControl "40/5400+30:1800+30"]

1. Nf3 g6 2. e4 Bg7 3. d4 d6 4. c3 Nf6 5. Bd3 O-O 6. O-O Nc6 7. d5 Nb8 8. h3 e6 9. dxe6 Bxe6 10. Be3 {[%emt 0:24:00]} c6 {[%emt 0:37:00]} 11. Nbd2 {[%emt 0:06:30]} Qc7 {[%emt 0:06:30]} 12. Nd4 {[%emt 0:05:30]} Bc8 {[%emt 0:04:30]} 13. f4 {[%emt 0:03:30]} a6 {[%emt 0:00:30]} 14. Qe1 {[%emt 0:03:30]} Nbd7 {[%emt 0:04:30]} 15. Qh4 {[%emt 0:00:30]} b5 {[%emt 0:07:30]} 16. f5 {[%emt 0:10:30]} c5 {[%emt 0:01:30]} 17. fxg6 {[%emt 0:05:30]} hxg6 {[%emt 0:07:30]} 18. N4f3 {[%emt 0:01:30]} Nh7 {[%emt 0:00:30]} 19. Ng5 {[%emt 0:07:30]} Nxg5 {[%emt 0:00:30]} 20. Bxg5 {[%emt 0:00:30]} f6 {[%emt 0:02:30]} 21. Be3 {[%emt 0:00:30]} Ne5 {[%emt 0:00:30]} 22. Bc2 {[%emt 0:01:30]} Be6 {[%emt 0:00:30]} 23. Qg3 {[%emt 0:01:30]} Bf7 {[%emt 0:05:30]} 24. Bf4 {[%emt 0:01:30]} Qe7 {[%emt 0:06:08]} 25. Rfd1 {[%emt 0:03:30]} Rfd8 {[%emt 0:00:34]} 26. Nf1 {[%emt 0:00:30]} Qf8 {[%emt 0:01:30]} 27. Ne3 {[%emt 0:01:30]} Bh6 {[%emt 0:01:56]} 28. Rd2 {[%emt 0:01:30]} Bxf4 {[%emt 0:03:46]} 29. Qxf4 {[%emt 0:00:30]} Be6 {[%emt 0:02:01]} 30. Bb3 {[%emt 0:04:49]} c4 {[%emt 0:01:17]} 31. Bc2 {[%emt 0:00:06]} Ra7 {[%emt 0:00:49]} 32. Rad1 {[%emt 0:00:24]} 1/2-1/2